bitfinex/quotes_BTCUSD_20250616
["timestamp","ask_amount","ask_price","bid_price","bid_amount"]
[1750090290511,0.04104206,107650.0,107640.0,0.30991593]
[1750090290735,0.04104206,107650.0,107640.0,0.50383593]
[1750090292153,0.04104206,107650.0,107640.0,0.30991593]
[1750090292154,0.62374862,107650.0,107640.0,0.30991593]
[1750090292371,0.64728622,107650.0,107640.0,0.40759417]
[1750090292593,0.05487914,107640.0,107630.0,0.48135718]
[1750090292815,0.6425457,107640.0,107630.0,0.56830863]
[1750090293036,0.6518355,107640.0,107630.0,0.47206687]
[1750090293174,0.6518355,107640.0,107630.0,0.66598687]
[1750090293175,0.65183532,107640.0,107630.0,0.66598687]
[1750090293568,0.62396656,107640.0,107630.0,0.66598687]
[1750090293775,0.63325609,107640.0,107630.0,0.66598687]
[1750090294413,0.63525609,107640.0,107630.0,0.66598687]
[1750090294924,0.62596656,107640.0,107630.0,0.66598687]
[1750090295079,0.63525609,107640.0,107630.0,0.66598687]
[1750090296448,0.62596656,107640.0,107630.0,0.66598687]
[1750090296608,0.635256,107640.0,107630.0,0.66598687]
[1750090296803,0.635256,107640.0,107630.0,0.47206687]
[1750090297054,0.64454553,107640.0,107630.0,0.66594687]
[1750090297256,0.635256,107640.0,107630.0,0.66594687]
[1750090297914,0.64454562,107640.0,107630.0,0.66594687]
[1750090298200,0.635256,107640.0,107630.0,0.66594687]
[1750090298761,0.0383,107640.0,107630.0,0.66594687]
[1750090300483,0.04758944,107640.0,107630.0,0.47206687]
[1750090300606,0.0383,107640.0,107630.0,0.66594687]
[1750090302501,0.002,107640.0,107630.0,0.66594687]
[1750090302727,0.002,107640.0,107630.0,0.78218863]
[1750090302951,0.002,107640.0,107630.0,1.36489519]
[1750090303169,0.002,107640.0,107630.0,1.40129519]
[1750090304480,0.002,107640.0,107630.0,0.78218863]
[1750090306432,0.002,107640.0,107630.0,0.58830863]
[1750090306643,0.61960656,107640.0,107630.0,0.56830863]
[1750090307088,0.63385609,107640.0,107630.0,0.47206687]
[1750090307303,0.62889609,107640.0,107630.0,0.46277708]
[1750090307509,0.65243593,107640.0,107630.0,0.6844893]
[1750090307713,0.64314588,107640.0,107630.0,0.6844893]
[1750090308199,0.65243593,107640.0,107630.0,0.6844893]
[1750090308383,0.64314588,107640.0,107630.0,0.6844893]
[1750090308883,0.64314579,107640.0,107630.0,0.6844893]
[1750090309106,0.65243558,107640.0,107630.0,0.6844893]
[1750090310193,0.66172554,107640.0,107630.0,0.6844893]
[1750090310400,0.65243558,107640.0,107630.0,0.6844893]
[1750090310629,0.66172546,107640.0,107630.0,0.6844893]
[1750090311297,0.65243558,107640.0,107630.0,0.6844893]
[1750090311947,0.63385609,107640.0,107630.0,0.4906493]
[1750090312159,0.61960656,107640.0,107630.0,0.6844093]
[1750090312396,0.64747559,107640.0,107630.0,0.6843693]
[1750090312610,0.6474755,107640.0,107630.0,0.6843693]
[1750090313034,0.62889609,107640.0,107630.0,0.6843693]
[1750090313254,0.63818579,107640.0,107630.0,0.6843693]
[1750090313469,0.62889609,107640.0,107630.0,0.6843693]
[1750090313720,0.63818571,107640.0,107630.0,0.6843693]
[1750090313935,0.62889609,107640.0,107630.0,0.6843693]
[1750090314810,0.64747559,107640.0,107630.0,0.6843693]
[1750090315020,0.63818571,107640.0,107630.0,0.6843693]
[1750090315227,0.64747559,107640.0,107630.0,0.6843693]
[1750090315446,0.6474755,107640.0,107630.0,0.6843693]
[1750090316610,0.65676538,107640.0,107630.0,0.6843693]
[1750090317916,0.62889609,107640.0,107630.0,0.6843693]
[1750090318124,0.63818588,107640.0,107630.0,0.6843693]
[1750090319328,0.64747576,107640.0,107630.0,0.6843693]
[1750090319785,0.65676581,107640.0,107630.0,0.4906493]
[1750090319999,0.65676581,107640.0,107630.0,0.6843693]
[1750090320446,0.05458104,107630.0,107620.0,0.21371344]
[1750090320670,0.6372876,107630.0,107620.0,0.40743344]
[1750090320905,0.63728752,107630.0,107620.0,0.41672539]
[1750090321184,0.036,107630.0,107620.0,0.41672539]
[1750090322082,0.036,107630.0,107620.0,0.41772539]
[1750090322997,0.61870656,107630.0,107620.0,0.41772539]
[1750090325829,0.036,107630.0,107620.0,0.41772539]
[1750090326045,0.62809609,107640.0,107630.0,0.21369401]
[1750090326263,0.63738579,107640.0,107630.0,0.21369401]
[1750090326697,0.66095563,107640.0,107630.0,0.21369401]
[1750090326935,0.65166558,107640.0,107630.0,0.36705401]
[1750090327170,0.66095563,107640.0,107630.0,0.36705401]
[1750090327371,0.65166558,107640.0,107630.0,0.36705401]
[1750090327828,0.65366558,107640.0,107630.0,0.36705401]
[1750090328247,0.65366558,107640.0,107630.0,0.21369401]
[1750090328453,0.66295563,107640.0,107630.0,0.36705401]
[1750090328688,0.07095902,107640.0,107630.0,0.36705401]
[1750090328925,0.65366558,107640.0,107630.0,0.36705401]
[1750090329194,0.66295554,107640.0,107630.0,0.36705401]
[1750090329424,0.65366558,107640.0,107630.0,0.36705401]
[1750090329861,0.63508609,107640.0,107630.0,0.36705401]
[1750090330068,0.04738953,107640.0,107630.0,0.36705401]
[1750090330289,0.63938579,107640.0,107630.0,0.36705401]
[1750090330495,0.63009609,107640.0,107630.0,0.36705401]
[1750090330712,0.04738953,107640.0,107630.0,0.36705401]
[1750090330933,0.63938579,107640.0,107630.0,0.36705401]
[1750090331159,0.64867558,107640.0,107630.0,0.36705401]
[1750090331835,0.66295554,107640.0,107630.0,0.36705401]
[1750090332034,0.66295546,107640.0,107630.0,0.36705401]
[1750090332447,0.0802489,107640.0,107630.0,0.36705401]
[1750090332720,0.66295546,107640.0,107630.0,0.36705401]
[1750090333129,0.67224551,107640.0,107630.0,0.36705401]
[1750090333346,0.66295546,107640.0,107630.0,0.36705401]
[1750090333763,0.66295546,107640.0,107630.0,0.35776353]
[1750090333993,0.66295546,107640.0,107630.0,0.36705418]
[1750090334201,0.83947115,107640.0,107630.0,0.15336]
[1750090334428,0.83947115,107640.0,107630.0,0.34843287]
[1750090334640,0.83947115,107640.0,107630.0,0.36701461]
[1750090334901,0.83947115,107640.0,107630.0,0.35772378]
[1750090335121,0.83947115,107640.0,107630.0,0.36701461]
[1750090335347,0.83947115,107640.0,107630.0,0.37630535]
[1750090335970,0.83947115,107640.0,107630.0,0.385596]
[1750090336932,1.42284855,107640.0,107630.0,0.385596]
[1750090337813,1.40426871,107640.0,107630.0,0.34843287]
[1750090338036,1.40426871,107640.0,107630.0,0.35772387]
[1750090338457,1.40426871,107640.0,107630.0,0.37630561]
[1750090338688,1.40426871,107640.0,107630.0,0.38559635]
[1750090338885,1.40426871,107640.0,107630.0,0.37630527]
[1750090339090,1.40426871,107640.0,107630.0,0.36701453]
[1750090339321,1.40426871,107640.0,107630.0,0.37630527]
[1750090340587,1.40426871,107640.0,107630.0,0.38559592]
[1750090341376,1.40426871,107640.0,107630.0,0.36701453]
[1750090342233,1.40426871,107640.0,107630.0,0.38559592]
[1750090343050,1.40426871,107640.0,107630.0,0.37630527]
[1750090343558,1.40426871,107640.0,107630.0,0.38559592]
[1750090343742,1.41355867,107640.0,107630.0,0.42591592]
[1750090343966,1.41355867,107640.0,107630.0,0.42591549]
[1750090344404,1.41355867,107640.0,107630.0,0.42591506]
[1750090344405,1.22775362,107640.0,107630.0,0.42591506]
[1750090344618,1.23704367,107640.0,107630.0,0.42591506]
[1750090344817,1.43213834,107640.0,107630.0,0.42591506]
[1750090345040,1.44142856,107640.0,107630.0,0.42591506]
[1750090345905,1.24633381,107640.0,107630.0,0.42591506]
[1750090346123,0.05667914,107640.0,107630.0,0.42591506]
[1750090346336,0.63972112,107640.0,107630.0,0.42591506]
[1750090346583,0.649011,107640.0,107630.0,0.42591506]
[1750090346799,0.63972112,107640.0,107630.0,0.42591506]
[1750090348407,1.23205298,107640.0,107630.0,0.42591506]
[1750090348851,1.24134303,107640.0,107630.0,0.42591506]
[1750090349304,1.24134303,107640.0,107630.0,0.27259506]
[1750090349537,1.24134303,107640.0,107630.0,0.42587506]
[1750090350498,1.25063317,107640.0,107630.0,0.42587506]
[1750090350747,1.42714826,107640.0,107630.0,0.39796336]
[1750090350941,1.43182826,107640.0,107630.0,0.40725401]
[1750090351153,1.43182826,107640.0,107630.0,0.41654458]
[1750090351370,1.44111848,107640.0,107630.0,0.41654458]
[1750090351830,1.43182878,107640.0,107630.0,0.40725401]
[1750090352051,1.4225389,107640.0,107630.0,0.39796336]
[1750090353167,1.41324885,107640.0,107630.0,0.39796336]
[1750090354662,1.41324885,107640.0,107630.0,0.3979637]
[1750090354885,1.40395871,107640.0,107630.0,0.3978837]
[1750090355095,1.40395871,107640.0,107630.0,0.40717478]
[1750090355556,1.40395871,107640.0,107630.0,0.42575617]
[1750090355778,1.40395871,107640.0,107630.0,0.41646552]
[1750090355999,1.40395871,107640.0,107630.0,0.40717478]
[1750090356661,1.40395871,107640.0,107630.0,0.41646552]
[1750090357956,1.40395871,107640.0,107630.0,0.40717478]
[1750090359335,1.40395871,107640.0,107630.0,0.22298561]
[1750090359551,1.39466849,107640.0,107630.0,0.39784387]
[1750090360348,1.39466849,107640.0,107630.0,0.19344]
[1750090360737,1.38998849,107640.0,107630.0,0.3885527]
[1750090360949,1.38998849,107640.0,107630.0,0.39784353]
[1750090361571,1.39927871,107640.0,107630.0,0.40713427]
[1750090362425,1.40856867,107640.0,107630.0,0.41642492]
[1750090362852,0.05667966,107640.0,107630.0,0.41642492]
[1750090363122,0.002,107640.0,107630.0,0.4257154]
[1750090363340,0.002,107640.0,107630.0,1.14159914]
[1750090363552,0.58504198,107640.0,107630.0,0.55855716]
[1750090364854,0.002,107640.0,107630.0,0.36511716]
[1750090365061,0.002,107640.0,107630.0,0.55855716]
[1750090371301,0.002,107640.0,107630.0,1.141428]
[1750090371619,0.002,107640.0,107630.0,0.55855716]
[1750090374698,0.002,107640.0,107630.0,0.36511716]
[1750090374882,0.002,107640.0,107630.0,0.55835716]
[1750090380781,0.002,107640.0,107630.0,1.141228]
[1750090381854,0.002,107640.0,107630.0,1.122728]
[1750090383157,0.002,107640.0,107630.0,1.141028]
[1750090383606,0.002,107640.0,107630.0,1.541028]
[1750090384465,0.002,107640.0,107630.0,1.540948]
[1750090384928,0.002,107640.0,107630.0,1.54077609]
[1750090385366,0.002,107640.0,107630.0,1.34761609]
[1750090385570,0.002,107640.0,107630.0,1.54077609]
[1750090386297,0.002,107640.0,107630.0,1.88077609]
[1750090386977,0.0004759,107640.0,107630.0,2.52801587]
[1750090387630,0.0004759,107640.0,107630.0,2.33485587]
[1750090388061,0.0004759,107640.0,107630.0,2.52801587]
[1750090388279,0.00014206,107650.0,107640.0,0.67601502]
[1750090388523,0.00014206,107650.0,107640.0,1.93765464]
[1750090388738,0.00014206,107650.0,107640.0,2.13077464]
[1750090389922,0.00014206,107650.0,107640.0,2.13177464]
[1750090391124,0.00014206,107650.0,107640.0,2.73447357]
[1750090391571,0.0364,107680.0,107670.0,0.23361463]
[1750090391806,0.03687344,107680.0,107670.0,1.37331532]
[1750090392247,0.01807344,107680.0,107670.0,1.37331532]
[1750090392758,0.01907344,107680.0,107670.0,1.37331532]
[1750090393021,0.02007344,107680.0,107670.0,0.79061639]
[1750090393267,0.01907344,107680.0,107670.0,0.79061639]
[1750090393943,0.01907344,107680.0,107670.0,1.13061639]
[1750090395323,0.00147344,107680.0,107670.0,1.72578391]
[1750090395785,0.00147344,107680.0,107670.0,1.94448391]
[1750090395997,0.00147344,107680.0,107670.0,1.96238391]
[1750090397919,0.00147344,107680.0,107670.0,2.60928997]
[1750090398361,0.0077,107690.0,107680.0,1.03216]
[1750090398577,0.00784195,107690.0,107680.0,1.12840176]
[1750090398792,0.00784195,107690.0,107680.0,1.32144176]
[1750090399250,0.00784195,107690.0,107680.0,0.54603655]
[1750090399471,0.00784195,107690.0,107680.0,1.12840176]
[1750090399723,0.02534195,107690.0,107680.0,0.50983655]
[1750090399936,0.04364195,107690.0,107680.0,1.51047655]
[1750090400415,0.04364195,107690.0,107680.0,1.54001942]
[1750090400633,0.04364195,107690.0,107680.0,1.31943655]
[1750090400851,0.04364195,107690.0,107680.0,1.51247655]
[1750090401338,0.04364195,107690.0,107680.0,2.09484176]
[1750090402021,0.04364195,107690.0,107680.0,1.51247655]
[1750090402250,0.00784195,107690.0,107680.0,2.09484176]
[1750090402459,0.00784195,107690.0,107680.0,2.11354176]
[1750090402932,0.00784195,107690.0,107680.0,1.51247655]
[1750090403145,0.00784195,107690.0,107680.0,2.09484176]
[1750090403439,0.00784195,107690.0,107680.0,1.51247655]
[1750090403656,0.00784195,107690.0,107680.0,1.51243655]
[1750090403921,0.04504195,107690.0,107680.0,1.51243655]
[1750090405186,0.04504195,107690.0,107680.0,1.54095111]
[1750090406505,0.04504195,107690.0,107680.0,1.34795111]
[1750090406714,0.04504195,107690.0,107680.0,1.54083111]
[1750090406929,0.04504195,107690.0,107680.0,1.34795111]
[1750090407404,0.04504195,107690.0,107680.0,1.54083111]
[1750090410266,0.04504195,107690.0,107680.0,1.54079111]
[1750090410476,0.04504195,107690.0,107680.0,1.14079111]
[1750090412990,0.04504195,107690.0,107680.0,1.72315632]
[1750090413209,0.04504195,107690.0,107680.0,1.14079111]
[1750090413636,0.04504195,107690.0,107680.0,0.94795111]
[1750090413857,0.04504195,107690.0,107680.0,1.14079111]
[1750090416518,0.02614195,107690.0,107680.0,1.72315632]
[1750090416765,0.00784195,107690.0,107680.0,1.72315632]
[1750090418969,0.00784195,107690.0,107680.0,1.74315632]
[1750090419283,0.00784195,107690.0,107680.0,1.77855632]
[1750090419755,0.00784195,107690.0,107680.0,1.76085632]
[1750090419966,0.00784195,107690.0,107680.0,1.74315632]
[1750090425274,0.04504195,107690.0,107680.0,1.74315632]
[1750090426145,0.04504195,107690.0,107680.0,1.16079111]
[1750090426372,0.04504195,107690.0,107680.0,1.74315632]
[1750090427579,0.00784195,107690.0,107680.0,1.74315632]
[1750090428671,0.00124081,107690.0,107680.0,1.74315632]
[1750090432875,0.00124081,107690.0,107680.0,1.95769717]
[1750090433091,0.00124081,107690.0,107680.0,1.48233196]
[1750090433302,0.00124081,107690.0,107680.0,2.06469717]
[1750090438081,0.038,107710.0,107700.0,0.77355512]
[1750090438297,0.038,107710.0,107700.0,1.60492209]
[1750090439134,0.0181,107710.0,107700.0,1.60492209]
[1750090439768,0.001,107710.0,107700.0,1.80492209]
[1750090440412,0.001,107710.0,107700.0,1.65316209]
[1750090440624,0.0186,107710.0,107700.0,1.84584209]
[1750090441052,0.0186,107710.0,107700.0,1.84684209]
[1750090441690,0.001,107710.0,107700.0,1.84684209]
[1750090441916,0.001,107710.0,107700.0,2.33816815]
[1750090442159,0.001,107710.0,107700.0,2.53084815]
[1750090442815,0.001,107710.0,107700.0,2.55084815]
[1750090443267,0.001,107710.0,107700.0,2.84474815]
[1750090443735,0.001,107710.0,107700.0,2.84374815]
[1750090443949,0.001,107710.0,107700.0,2.84574815]
[1750090444620,0.0196,107730.0,107720.0,0.77351548]
[1750090444844,0.03794192,107730.0,107720.0,1.06243724]
[1750090445065,0.03794192,107730.0,107720.0,1.12991724]
[1750090445288,0.04257192,107730.0,107720.0,0.93723724]
[1750090445733,0.04257192,107730.0,107720.0,0.97719724]
[1750090445949,0.04257192,107730.0,107720.0,1.12991724]
[1750090446162,0.04457192,107730.0,107720.0,1.12991724]
[1750090446378,0.04457192,107730.0,107720.0,1.12987724]
[1750090447499,0.04457192,107730.0,107720.0,0.93723724]
[1750090447721,0.04457192,107730.0,107720.0,1.12987724]
[1750090448618,0.02174192,107730.0,107720.0,1.71224245]
[1750090452175,0.03914192,107730.0,107720.0,1.71224245]
[1750090457487,0.00414192,107730.0,107720.0,1.73004245]
[1750090458839,0.00414192,107730.0,107720.0,1.93004245]
[1750090460214,0.00414192,107730.0,107720.0,1.9945833]
[1750090460876,0.00414192,107730.0,107720.0,1.9767833]
[1750090461085,0.02334192,107730.0,107720.0,2.2706833]
[1750090461757,0.00414192,107730.0,107720.0,2.2706833]
[1750090461976,0.00414192,107730.0,107720.0,2.2881833]
[1750090466323,0.00414192,107730.0,107720.0,1.70581809]
[1750090466535,0.00414192,107730.0,107720.0,2.2881833]
[1750090467188,0.00414192,107730.0,107720.0,2.2706833]
[1750090468531,0.02274192,107730.0,107720.0,1.62377724]
[1750090468753,0.04044192,107730.0,107720.0,2.20614245]
[1750090469179,0.02274192,107730.0,107720.0,2.20614245]
[1750090470089,0.0177,107740.0,107730.0,0.55349565]
[1750090470263,0.0177,107740.0,107730.0,1.38470262]
[1750090470813,0.0177,107740.0,107730.0,0.80233741]
[1750090471459,0.0177,107740.0,107730.0,1.38470262]
[1750090472998,0.0364,107740.0,107730.0,1.38470262]
[1750090473226,0.0394,107740.0,107730.0,1.58470262]
[1750090473956,0.0217,107740.0,107730.0,1.58470262]
[1750090475575,0.003,107740.0,107730.0,1.58470262]
[1750090480933,0.003,107740.0,107730.0,1.00233741]
[1750090481148,0.003,107740.0,107730.0,1.58470262]
[1750090481773,0.003,107740.0,107730.0,1.00233741]
[1750090481988,0.00067444,107740.0,107730.0,1.60340262]
[1750090482401,0.00067444,107740.0,107730.0,2.18576783]
[1750090482618,0.00067444,107740.0,107730.0,1.58470262]
[1750090483090,0.0542361,107750.0,107740.0,0.57347583]
[1750090483313,0.0542361,107750.0,107740.0,1.4046428]
[1750090484771,0.0572361,107750.0,107740.0,1.4046428]
[1750090485033,0.0572361,107750.0,107740.0,1.41643042]
[1750090486003,0.0211361,107750.0,107740.0,1.41643042]
[1750090486465,0.0211361,107750.0,107740.0,1.63463042]
[1750090487195,0.0181361,107750.0,107740.0,1.69463042]
[1750090487445,0.0181361,107750.0,107740.0,1.71017127]
[1750090487664,0.0181361,107750.0,107740.0,1.69197127]
[1750090488756,0.0181361,107750.0,107740.0,1.71930917]
[1750090490126,0.0181361,107750.0,107740.0,1.56674917]
[1750090490312,0.0181361,107750.0,107740.0,1.75918917]
[1750090490762,0.0181361,107750.0,107740.0,2.05308917]
[1750090493224,0.0181361,107750.0,107740.0,2.32048917]
[1750090493878,0.0181361,107750.0,107740.0,1.73812396]
[1750090494317,0.0181361,107750.0,107740.0,2.32048917]
[1750090494562,0.0181361,107750.0,107740.0,1.73812396]
[1750090494772,0.0181361,107750.0,107740.0,2.39048917]
[1750090494991,0.0181361,107750.0,107740.0,2.42708917]
[1750090495202,0.0181361,107750.0,107740.0,2.39048917]
[1750090495412,0.0181361,107750.0,107740.0,2.34048917]
[1750090495642,0.0541361,107750.0,107740.0,2.34048917]
[1750090496279,0.0541361,107750.0,107740.0,1.75812396]
[1750090496501,0.0541361,107750.0,107740.0,2.34048917]
[1750090496713,0.0541361,107750.0,107740.0,1.75808396]
[1750090496939,0.0541361,107750.0,107740.0,2.34044917]
[1750090498129,0.0364361,107750.0,107740.0,2.34044917]
[1750090501011,0.0181361,107750.0,107740.0,1.75808396]
[1750090501231,0.0181361,107750.0,107740.0,2.34044917]
[1750090501667,0.0369361,107750.0,107740.0,2.34044917]
[1750090502059,0.0181361,107750.0,107740.0,2.34044917]
[1750090503453,0.0181361,107750.0,107740.0,1.75808396]
[1750090503638,0.0557361,107750.0,107740.0,2.04654917]
[1750090503892,0.0373361,107750.0,107740.0,2.04654917]
[1750090504098,0.0181361,107750.0,107740.0,2.04654917]
[1750090504809,0.0552361,107750.0,107740.0,2.04654917]
[1750090505035,0.0552361,107750.0,107740.0,1.46418396]
[1750090505249,0.0552361,107750.0,107740.0,2.04654917]
[1750090505690,0.04014987,107750.0,107740.0,2.04654917]
[1750090505948,0.04014987,107750.0,107740.0,1.42960311]
[1750090506619,0.04476987,107750.0,107740.0,1.05708311]
[1750090506835,0.62713508,107750.0,107740.0,0.94220311]
[1750090507062,0.62713508,107750.0,107740.0,0.88220311]
[1750090507297,0.62713508,107750.0,107740.0,0.72968311]
[1750090507516,0.62713508,107750.0,107740.0,0.88220311]
[1750090507964,0.62713508,107750.0,107740.0,0.72968311]
[1750090508187,0.67353662,107750.0,107740.0,0.25360135]
[1750090508421,0.84059127,107750.0,107740.0,0.24503501]
[1750090508669,0.84131096,107750.0,107740.0,0.04084]
[1750090508891,0.84131096,107750.0,107740.0,0.39755501]
[1750090509140,0.85292071,107750.0,107740.0,0.39755501]
[1750090509356,0.84131096,107750.0,107740.0,0.40683635]
[1750090509573,0.84131096,107750.0,107740.0,0.39655501]
[1750090509985,0.84531096,107750.0,107740.0,0.39655501]
[1750090510196,0.85660355,107750.0,107740.0,0.39655501]
[1750090510377,0.84531096,107750.0,107740.0,0.39655501]
[1750090511004,0.83603057,107750.0,107740.0,0.39655501]
[1750090511456,0.83603057,107750.0,107740.0,0.40583635]
[1750090511752,0.84773948,107750.0,107740.0,0.40583635]
[1750090511964,0.83603057,107750.0,107740.0,0.40583635]
[1750090512220,0.05876987,107750.0,107740.0,0.41511717]
[1750090512462,0.66897601,107750.0,107740.0,0.42439817]
[1750090513093,0.86387159,107750.0,107740.0,0.40583609]
[1750090513304,0.85459154,107750.0,107740.0,0.39655484]
[1750090513542,0.85459154,107750.0,107740.0,0.40583609]
[1750090513983,0.84531123,107750.0,107740.0,0.40583609]
[1750090514191,0.83603066,107750.0,107740.0,0.3872735]
[1750090514421,0.83603066,107750.0,107740.0,0.40583609]
[1750090515084,0.83603066,107750.0,107740.0,0.3876735]
[1750090515289,0.83603066,107750.0,107740.0,0.39695475]
[1750090515506,0.83603066,107750.0,107740.0,0.3876735]
[1750090515725,0.82674992,107750.0,107740.0,0.19276]
[1750090515938,0.82674992,107750.0,107740.0,0.23475367]
[1750090516186,0.82674992,107750.0,107740.0,0.2020416]
[1750090516434,0.82674992,107750.0,107740.0,0.19276]
[1750090516662,0.24601501,107740.0,107730.0,0.48085625]
[1750090516884,0.83766156,107740.0,107730.0,0.53001837]
[1750090517104,0.83766156,107740.0,107730.0,0.68289837]
[1750090517520,0.83766156,107740.0,107730.0,0.6921804]
[1750090517746,0.83766156,107740.0,107730.0,0.67357625]
[1750090517957,0.83766156,107740.0,107730.0,0.68285837]
[1750090518174,0.83866156,107740.0,107730.0,0.68281837]
[1750090518849,0.83866156,107740.0,107730.0,0.30724]
[1750090519074,1.50789465,107740.0,107730.0,0.26736]
[1750090519291,1.50789465,107740.0,107730.0,0.46004]
[1750090519509,1.41174543,107740.0,107730.0,0.46004]
[1750090519728,1.41374543,107740.0,107730.0,0.46]
[1750090520610,1.41374543,107740.0,107730.0,0.45996]
[1750090521037,0.83138022,107740.0,107730.0,0.46]
[1750090521507,0.83138022,107740.0,107730.0,0.26736]
[1750090521730,0.83138022,107740.0,107730.0,0.6456093]
[1750090521955,0.8499423,107740.0,107730.0,0.65489159]
[1750090522181,0.84066139,107740.0,107730.0,0.65489159]
[1750090522397,0.83138022,107740.0,107730.0,0.65489176]
[1750090522830,0.82209888,107740.0,107730.0,0.45996]
[1750090523056,0.82209888,107740.0,107730.0,0.6456093]
[1750090523275,0.82209888,107740.0,107730.0,0.65489167]
[1750090523918,0.82209888,107740.0,107730.0,0.6456093]
[1750090524171,0.81281728,107740.0,107730.0,0.65489167]
[1750090524364,0.82209879,107740.0,107730.0,0.66417396]
[1750090524570,0.82209879,107740.0,107730.0,0.67345599]
[1750090524787,0.07266368,107740.0,107730.0,0.68273785]
[1750090525008,0.65502889,107740.0,107730.0,0.68273785]
[1750090525224,0.84066096,107740.0,107730.0,0.68273785]
[1750090525474,0.65502889,107740.0,107730.0,0.68273785]
[1750090525691,0.63646638,107740.0,107730.0,0.68273785]
[1750090525900,0.64574729,107740.0,107730.0,0.68273785]
[1750090526110,0.65502863,107740.0,107730.0,0.68273785]
[1750090526525,0.66431006,107740.0,107730.0,0.68273785]
[1750090527169,0.65502863,107740.0,107730.0,0.68273785]
[1750090527378,0.65502854,107740.0,107730.0,0.68273785]
[1750090527605,0.66430997,107740.0,107730.0,0.68273785]
[1750090527828,0.66430988,107740.0,107730.0,0.68273785]
[1750090528288,0.65502854,107740.0,107730.0,0.68273785]
[1750090528719,0.66430997,107740.0,107730.0,0.68273785]
[1750090529700,0.65502854,107740.0,107730.0,0.68273785]
[1750090530625,0.66430997,107740.0,107730.0,0.68273785]
[1750090530825,0.65502854,107740.0,107730.0,0.68273785]
[1750090531105,0.66430997,107740.0,107730.0,0.68273785]
[1750090531893,0.65502854,107740.0,107730.0,0.68273785]
[1750090532096,0.64574729,107740.0,107730.0,0.68273785]
[1750090532512,0.65502872,107740.0,107730.0,0.68273785]
[1750090532720,0.64574729,107740.0,107730.0,0.68273785]
[1750090533510,0.63646612,107740.0,107730.0,0.68273785]
[1750090533688,0.64574729,107740.0,107730.0,0.68273785]
[1750090534043,0.65502872,107740.0,107730.0,0.68273785]
[1750090534250,0.66431005,107740.0,107730.0,0.68273785]
[1750090534555,0.84994281,107740.0,107730.0,0.67345599]
[1750090534716,0.84994281,107740.0,107730.0,0.68273793]
[1750090534890,0.65502914,107740.0,107730.0,0.68273793]
[1750090535098,0.65502914,107740.0,107730.0,0.69201979]
[1750090535853,0.84066121,107740.0,107730.0,0.69201979]
[1750090536371,0.84994281,107740.0,107730.0,0.69201979]
[1750090537537,0.65502906,107740.0,107730.0,0.69201979]
[1750090537963,0.66431057,107740.0,107730.0,0.69201979]
[1750090538650,0.67431057,107740.0,107730.0,0.69201979]
[1750090538849,0.85994264,107740.0,107730.0,0.69201979]
[1750090539070,0.85994307,107740.0,107730.0,0.67345599]
[1750090539917,0.85066147,107740.0,107730.0,0.68273793]
[1750090540124,0.0502,107740.0,107730.0,0.69201979]
[1750090540557,0.0323,107740.0,107730.0,0.69201979]
[1750090541195,0.61466521,107740.0,107730.0,0.69201979]
[1750090541437,0.62394612,107740.0,107730.0,0.69201979]
[1750090541651,0.66130845,107740.0,107730.0,0.69201979]
[1750090541863,0.6520272,107740.0,107730.0,0.69201979]
[1750090542467,0.64274612,107740.0,107730.0,0.69201979]
[1750090542685,0.63346521,107740.0,107730.0,0.69201979]
[1750090543087,0.65202712,107740.0,107730.0,0.69201979]
[1750090543293,0.64274612,107740.0,107730.0,0.69201979]
[1750090543839,0.65202729,107740.0,107730.0,0.69201979]
[1750090544086,0.65202729,107740.0,107730.0,0.49941979]
[1750090544291,0.65202729,107740.0,107730.0,0.69197979]
[1750090545282,0.65202712,107740.0,107730.0,0.69197979]
[1750090546562,0.64274612,107740.0,107730.0,0.69197979]
[1750090546910,0.6520272,107740.0,107730.0,0.69197979]
[1750090547121,0.63346521,107740.0,107730.0,0.69197979]
[1750090547303,0.61466521,107740.0,107730.0,0.69197979]
[1750090547766,0.0323,107740.0,107730.0,0.69197979]
[1750090548062,0.59536521,107740.0,107730.0,0.69197979]
[1750090548420,0.013,107740.0,107730.0,0.69197979]
[1750090549595,0.59536521,107740.0,107730.0,0.69197979]
[1750090550647,0.013,107740.0,107730.0,0.69197979]
[1750090550864,0.59536521,107740.0,107730.0,0.69197979]
[1750090551076,0.013,107740.0,107730.0,0.69197979]
[1750090551291,0.013,107740.0,107730.0,0.82702155]
[1750090551545,0.013,107740.0,107730.0,0.84542155]
[1750090555363,0.013,107740.0,107730.0,0.82702155]
[1750090561338,0.013,107740.0,107730.0,0.84512155]
[1750090564666,0.013,107740.0,107730.0,0.82702155]
[1750090565210,0.013,107740.0,107730.0,0.80822155]
[1750090567549,0.013,107740.0,107730.0,0.82572155]
[1750090568408,0.013,107740.0,107730.0,0.84462155]
[1750090571779,0.013,107740.0,107730.0,0.90462155]
[1750090572707,0.013,107740.0,107730.0,0.88572155]
[1750090579035,0.013,107740.0,107730.0,1.46744575]
[1750090579573,0.012679,107740.0,107730.0,1.46744575]
[1750090580695,0.012679,107740.0,107730.0,1.82494575]
[1750090581125,0.012679,107740.0,107730.0,1.24322155]
[1750090581551,0.012679,107740.0,107730.0,1.82494575]
[1750090582238,0.012679,107740.0,107730.0,1.24322155]
[1750090582447,0.012679,107740.0,107730.0,1.80744575]
[1750090584307,0.012679,107740.0,107730.0,1.82554575]
[1750090585054,0.012679,107740.0,107730.0,1.80744575]
[1750090585908,0.012679,107740.0,107730.0,2.02584575]
[1750090586119,0.00247411,107740.0,107730.0,2.02584575]
[1750090594897,0.00247411,107740.0,107730.0,2.9160108]
[1750090596149,0.00049386,107740.0,107730.0,2.9160108]
[1750090596581,0.00049386,107740.0,107730.0,2.9190108]
[1750090596790,0.00049386,107740.0,107730.0,2.9200108]
[1750090596992,0.00049386,107740.0,107730.0,2.91963542]
[1750090597461,0.00049386,107740.0,107730.0,2.96963542]
[1750090597897,0.00010463,107740.0,107730.0,3.06242581]
[1750090598776,0.00010463,107740.0,107730.0,2.96963542]
[1750090599025,0.00010463,107740.0,107730.0,3.06242581]
[1750090599444,0.00010463,107740.0,107730.0,1.89935279]
[1750090599660,0.00010463,107740.0,107730.0,2.96963542]
[1750090599904,0.00010463,107740.0,107730.0,3.06242581]
[1750090600114,0.00010463,107740.0,107730.0,2.76852581]
[1750090601662,0.00010463,107740.0,107730.0,2.67573542]
[1750090601870,0.00010463,107740.0,107730.0,2.70360742]
[1750090602081,0.00010463,107740.0,107730.0,1.5405344]
[1750090602314,0.00010463,107740.0,107730.0,2.70360742]
[1750090603273,0.00010463,107740.0,107730.0,2.79639781]
[1750090603942,0.00010463,107740.0,107730.0,2.70360742]
[1750090606094,0.00010463,107740.0,107730.0,2.99750742]
[1750090606301,0.00228016,107750.0,107740.0,1.36795319]
[1750090606512,0.00232745,107750.0,107740.0,1.61759495]
[1750090607569,0.00232745,107750.0,107740.0,1.6459261]